[Event "FTX Road to Miami Prelims 2022"]
[Site "Online"]
[Date "2022.07.04"]
[Round "4.3"]
[White "Aronian, Levon"]
[Black "Giri, Anish"]
[Result "1/2-1/2"]
[ECO "B30"]
[WhiteElo "2775"]
[BlackElo "2760"]
[Annotator "TA"]
[PlyCount "271"]
[EventDate "2022.07.10"]
[EventType "tourn"]
[EventCountry "NET"]
[SourceTitle "playchess.com"]
[Source "ChessBase"]
[SourceQuality "1"]
[TimeControl "40/5400+30:1800+30"]

{[%evp 128,270,124,117,208,197,197,91,91,0,91,0,91,91,91,91,91,91,108,108,148,91,115,91,91,91,91,91,91,91,91,58,91,91,91,0,108,0,69,0,194,91,108,91,91,87,87,87,69,69,91,69,69,69,133,128,209,209,209,209,202,202,202,195,194,142,142,142,142,142,202,142,191,142,142,113,121,121,121,121,121,120,183,65,64,40,40,0,0,0,0,0,0,0,0,0,8,8,8,8,8,8,8,8,8,8,8,0,0,0,0,0,0,0,0,0,0,0,0,0,0,0,0,0,0,0,0,0,0,0,0,0,0,0,0,0,0,0,0,0,0,0,0,0,0]} 1. e4 {[%emt 1:15:40]} c5 {[%emt 1:15:40]} 2. Nf3 {[%emt 0:00:22]} d6 {[%emt 0:00:21]} 3. Bc4 {[%emt 0:00:22]} Nf6 {[%emt 0:00:23]} 4. d3 {[%emt 0:00:21]} Nc6 {[%emt 0:00:21]} 5. O-O {[%emt 0:00:21]} g6 {[%emt 0:00:21]} 6. h3 {[%emt 0:00:25]} Bg7 {[%emt 0:00:21]} 7. Nc3 {[%emt 0:00:20]} O-O {[%emt 0:00:22]} 8. Bf4 {[%emt 0:00:33]} h6 {[%emt 0:01:39]} 9. Re1 {[%emt 0:00:41]} e5 {[%emt 0:00:57]} 10. Bd2 {[%emt 0:00:38]} Kh7 {[%emt 0:00:36]} 11. a3 {[%emt 0:00:28]} a6 {[%emt 0:00:46]} 12. Nd5 {[%emt 0:00:37]} Nxd5 {[%emt 0:01:27]} 13. Bxd5 {[%emt 0:00:23]} Ne7 {[%emt 0:00:40]} 14. Ba2 {[%emt 0:00:22]} f5 {[%emt 0:01:06]} 15. b4 {[%emt 0:00:31]} f4 {[%emt 0:00:48]} 16. bxc5 {[%emt 0:00:40]} dxc5 {[%emt 0:00:22]} 17. a4 {[%emt 0:00:20]} b6 {[%emt 0:00:43]} 18. Rb1 {[%emt 0:00:41]} Qd6 {[%emt 0:00:53]} 19. c3 {[%emt 0:00:57]} b5 {[%emt 0:02:09]} 20. Bc1 {[%emt 0:03:04]} Rb8 {[%emt 0:01:57]} 21. d4 {[%emt 0:01:39]} cxd4 {[%emt 0:00:48]} 22. cxd4 {[%emt 0:00:22]} exd4 {[%emt 0:00:23]} 23. e5 {[%emt 0:00:54]} Qc5 {[%emt 0:00:22]} 24. axb5 {[%emt 0:02:25]} axb5 {[%emt 0:01:06]} 25. Qxd4 {[%emt 0:00:50]} Qc2 {[%emt 0:01:24]} 26. Ba3 {[%emt 0:01:50]} b4 {[%emt 0:03:23]} 27. Bb3 {[%emt 0:00:48]} Qf5 {[%emt 0:01:33]} 28. Bxb4 {[%emt 0:00:23]} Nc6 {[%emt 0:00:21]} 29. Qd6 {[%emt 0:00:21]} Rxb4 {[%emt 0:00:27]} 30. Qxc6 {[%emt 0:00:21]} Bb7 {[%emt 0:00:26]} 31. Qc3 {[%emt 0:00:21]} Bxf3 {[%emt 0:01:46]} 32. Qxf3 {[%emt 0:00:23]} Rd4 {[%emt 0:01:22]} 33. e6 {[%emt 0:00:36]} Re8 {[%emt 0:00:24]} 34. Rbd1 {[%emt 0:00:45]} Qa5 {[%emt 0:00:53]} 35. Re4 {[%emt 0:00:41]} Rxd1+ {[%emt 0:00:59]} 36. Qxd1 {[%emt 0:00:21]} Qf5 {[%emt 0:00:32]} 37. Qf3 {[%emt 0:02:32]} Re7 {[%emt 0:00:21]} 38. Qxf4 {[%emt 0:00:41]} Qxf4 {[%emt 0:00:21]} 39. Rxf4 {[%emt 0:00:20]} Be5 {[%emt 0:00:22]} 40. Rf3 {[%emt 0:00:37]} Kg7 {[%emt 0:00:21]} 41. h4 {[%emt 0:30:25]} h5 {[%emt 0:30:23]} 42. g3 {[%emt 0:00:22]} Rc7 {[%emt 0:00:23]} 43. Kf1 {[%emt 0:00:30]} Bf6 {[%emt 0:00:25]} 44. Ke2 {[%emt 0:00:26]} Rc5 {[%emt 0:00:30]} 45. Rd3 {[%emt 0:00:28]} Be7 {[%emt 0:00:23]} 46. f4 {[%emt 0:00:35]} Kf6 {[%emt 0:00:26]} 47. Kd2 {[%emt 0:01:08]} Rc8 {[%emt 0:00:34]} 48. Rd7 {[%emt 0:00:22]} Bb4+ {[%emt 0:00:48]} 49. Ke2 {[%emt 0:00:54]} Be7 {[%emt 0:00:21]} 50. Rb7 {[%emt 0:00:32]} Rc3 {[%emt 0:00:25]} 51. Kf2 {[%emt 0:00:21]} Bc5+ {[%emt 0:00:33]} 52. Kg2 {[%emt 0:00:22]} Be7 {[%emt 0:00:21]} 53. Bd5 {[%emt 0:00:26]} Rc2+ {[%emt 0:00:46]} 54. Kh3 {[%emt 0:00:23]} Re2 {[%emt 0:00:29]} 55. Rb8 {[%emt 0:01:08]} Rd2 {[%emt 0:00:22]} 56. Rb5 {[%emt 0:00:25]} Re2 {[%emt 0:00:43]} 57. Bc4 {[%emt 0:00:33]} Re4 {[%emt 0:01:00]} 58. Bd3 {[%emt 0:00:21]} Re3 {[%emt 0:00:33]} 59. Bb1 {[%emt 0:00:30]} Kg7 {[%emt 0:00:39]} 60. Rb6 {[%emt 0:00:45]} Kf6 {[%emt 0:00:31]} 61. Rc6 {[%emt 0:00:23]} Re2 {[%emt 0:00:25]} 62. Bc2 {[%emt 0:00:57]} Re3 {[%emt 0:00:34]} 63. Kg2 {[%emt 0:00:25]} Ra3 {[%emt 0:00:22]} 64. Be4 {[%emt 0:00:59]} Re3 {[%emt 0:00:28]} 65. Rc4 {[%emt 0:00:23]} Re2+ {[%emt 0:00:25]} (65... Ra3 $16 66. Rc7 Ra2+ 67. Kf3 Ra3+ 68. Kg2 Kxe6 69. Bxg6 Ra2+ 70. Kh3 Ra5 71. f5+ Kf6 72. Rc6+ (72. Bxh5 Rxf5 73. Rc6+ Ke5 $18) 72... Kg7) 66. Kf3 $18 {[%emt 0:00:29]} Ra2 {[%emt 0:00:30]} 67. Rc6 {[%emt 0:01:10]} (67. Rc7 $1 $18) 67... Ra3+ $16 {[%emt 0:00:24]} 68. Kg2 {[%emt 0:00:22]} (68. Kf2 $16) 68... Ra2+ {[%emt 0:00:22]} (68... Re3 $11 {keeps the balance.} 69. Rc4 Re1) 69. Bc2 {[%emt 0:00:21]} (69. Kh3 $16) 69... Ra5 {[%emt 0:00:30]} (69... Ra3 $1 $11) 70. Bb3 {[%emt 0:00:55]} Rb5 {[%emt 0:00:35]} 71. Rc3 {[%emt 0:00:21]} Rc5 {[%emt 0:00:24]} 72. Rd3 {[%emt 0:00:26]} Ra5 {[%emt 0:00:25]} 73. Rd7 {[%emt 0:00:27]} Rb5 {[%emt 0:00:40]} 74. Bd5 {[%emt 0:00:31]} (74. Bc2 $142 $1) 74... Rb6 {[%emt 0:00:32]} 75. Kf3 {[%emt 0:00:32]} Ra6 {[%emt 0:00:22]} 76. Rb7 {[%emt 0:00:27]} Ra3+ {[%emt 0:00:31]} 77. Bb3 {[%emt 0:00:21]} Ra6 {[%emt 0:00:24]} 78. Rb5 {[%emt 0:00:50]} Rc6 {[%emt 0:00:29]} 79. Rb8 {[%emt 0:01:09]} Rc3+ {[%emt 0:00:31]} 80. Kg2 {[%emt 0:00:21]} Bd6 {[%emt 0:00:34]} 81. Rb7 {[%emt 0:01:22]} Be7 {[%emt 0:00:21]} 82. Bd5 {[%emt 0:00:24]} Rc2+ {[%emt 0:00:42]} 83. Kh3 {[%emt 0:00:24]} (83. Kf3 $14) 83... Re2 $1 $18 {[%emt 0:00:26]} 84. Rb5 {[%emt 0:00:40]} (84. Rc7 $1 $18 {and the rest is easy.}) 84... Re3 {[%emt 0:00:56]} 85. Ba2 {[%emt 0:00:33]} Re4 {[%emt 0:00:31]} 86. Rg5 {[%emt 0:00:41]} Re1 {[%emt 0:00:41]} 87. Bc4 {[%emt 0:00:41]} Kg7 {[%emt 0:00:25]} 88. Rb5 {[%emt 0:00:46]} Kf6 {[%emt 0:00:29]} 89. Rb8 {[%emt 0:00:21]} Re4 {[%emt 0:00:30]} 90. Rc8 {[%emt 0:00:23]} Re3 {[%emt 0:00:26]} ({Black should play} 90... Kg7 $14 91. Rc6 Kf6) 91. Rg8 $1 $16 {[%emt 0:00:25]} Rc3 {[%emt 0:00:29]} (91... Bb4 $16 {might work better.} 92. Bb5 Ra3) 92. Bd5 $18 {[%emt 0:00:31]} Re3 {[%emt 0:00:23]} 93. Bc6 $1 {[%emt 0:00:21]} Bd6 {[%emt 0:00:42]} 94. Be8 $1 {[%emt 0:00:22]} Bxf4 {[%emt 0:00:23]} 95. Rxg6+ {[%emt 0:00:21]} Ke7 {[%emt 0:00:21]} 96. Bf7 {[%emt 0:00:21]} (96. Rg8 $18) 96... Bd6 $16 {[%emt 0:00:30]} 97. Kg2 {[%emt 0:00:25]} Rc3 {[%emt 0:00:39]} 98. Rg5 {[%emt 0:00:28]} Kf6 {[%emt 0:00:41]} (98... Rc5 $16 {was worth a try.} 99. Rg8 (99. Rxh5 Rxh5 100. Bxh5 Kxe6 $11) (99. Bxh5 Rxg5 100. hxg5 Kxe6 $11) 99... Bc7) 99. Kf2 {[%emt 0:01:05]} ({Don't do} 99. Rxh5 $6 Rxg3+ 100. Kf2 Rb3 $16) 99... Ra3 {[%emt 0:00:36]} (99... Rc5 $16) 100. Rg6+ {[%emt 0:00:21]} ({Don't take} 100. Rxh5 $6 Bxg3+ 101. Kg2 Bc7 $16) ({White should try} 100. Bxh5 $18 Kxe6 101. Bf3) 100... Ke7 $16 {[%emt 0:00:22]} 101. Bg8 {[%emt 0:00:21]} Ra2+ {[%emt 0:00:36]} 102. Kf3 {[%emt 0:00:21]} Ra3+ {[%emt 0:00:21]} 103. Kg2 $1 {[%emt 0:00:20]} Ra2+ {[%emt 0:00:23] [#]} 104. Kh3 $1 {[%emt 0:00:21]} Ra3 {[%emt 0:00:22] [#]} (104... Ra5 $16 {is a better defense.} 105. Bf7 Bc7) 105. Rg7+ {[%emt 0:00:23]} (105. Rg5 $1 $18) 105... Kf6 $1 $14 {[%emt 0:00:26]} 106. Rg5 {[%emt 0:00:38]} Bf4 $1 {[%emt 0:00:42]} 107. Bf7 {[%emt 0:00:40]} (107. e7 $5 Kxe7 108. Rg6 $14) 107... Bxg5 {[%emt 0:00:25]} 108. hxg5+ {[%emt 0:00:21]} Kg7 {[%emt 0:00:26]} 109. Bxh5 {[%emt 0:00:24]} Re3 {[%emt 0:00:27]} 110. Bf7 {[%emt 0:00:21]} Re4 {[%emt 0:00:24]} 111. g4 {[%emt 0:00:28]} Re5 {[%emt 0:00:35]} 112. Kh4 $1 {[%emt 0:00:25]} Re3 {[%emt 0:00:26]} 113. g6 {[%emt 0:00:29]} Kf6 {[%emt 0:00:45]} 114. g5+ {[%emt 0:00:24]} Kg7 {[%emt 0:00:21]} 115. Kg4 {[%emt 0:00:20]} Kf8 {[%emt 0:00:37]} 116. Kf5 $1 {[%emt 0:00:43]} Re1 {[%emt 0:00:35]} 117. g7+ {[%emt 0:01:05]} Kxg7 {[%emt 0:00:22]} 118. Bh5 {[%emt 0:00:26]} Kf8 {[%emt 0:00:38]} 119. Kf6 {[%emt 0:00:43]} Rf1+ {[%emt 0:00:25]} 120. Kg6 {[%emt 0:00:21]} Ke7 {[%emt 0:00:42]} 121. Bg4 {[%emt 0:00:22]} Rg1 {[%emt 0:00:23]} 122. Bf5 {[%emt 0:00:32]} Rf1 {[%emt 0:00:27]} 123. Bd3 {[%emt 0:00:21]} Rc1 {[%emt 0:00:29]} 124. Bf5 {[%emt 0:00:27]} Rf1 {[%emt 0:00:22]} 125. Bh3 {[%emt 0:00:21]} Rh1 {[%emt 0:00:33]} 126. Bg4 $1 {[%emt 0:00:21]} Rg1 {[%emt 0:00:24]} 127. Kf5 {[%emt 0:00:22]} Rf1+ {[%emt 0:00:24]} 128. Ke5 {[%emt 0:00:21]} Re1+ {[%emt 0:00:36]} 129. Kf4 {[%emt 0:00:21]} Rxe6 {[%emt 0:00:40]} 130. Bxe6 {[%emt 0:00:21]} Kxe6 {[%emt 0:00:20]} 131. Ke4 {[%emt 0:00:21]} Kf7 {[%emt 0:00:21]} 132. Kf5 {[%emt 0:00:20]} Kg7 {[%emt 0:00:20]} 133. g6 {[%emt 0:00:21]} Kg8 {[%emt 0:00:21]} 134. Kf6 {[%emt 0:00:20]} Kf8 {[%emt 0:00:21]} 135. g7+ {[%emt 0:00:21]} Kg8 {[%emt 0:00:20]} 136. Kg6 {[%emt 0:00:20]} 1/2-1/2

[Event "FTX Road to Miami Prelims 2022"]
[Site "Online"]
[Date "2022.07.04"]
[Round "4.4"]
[White "Radjabov, Teimour"]
[Black "Ju, Wenjun"]
[Result "0-1"]
[ECO "D38"]
[WhiteElo "2738"]
[BlackElo "2560"]
[Annotator "TA"]
[PlyCount "106"]
[EventDate "2022.07.10"]
[EventType "tourn"]
[EventCountry "NET"]
[SourceTitle "playchess.com"]
[Source "ChessBase"]
[SourceQuality "1"]
[TimeControl "40/5400+30:1800+30"]

{[%evp 19,106,0,0,0,0,-1,0,-16,-17,-15,-16,-37,-30,-40,-30,-68,-31,-53,-43,-36,0,0,12,4,0,-35,0,0,0,-108,0,0,0,0,0,-48,-50,-75,-67,-115,-110,-185,-95,-117,-70,-109,-107,-122,-85,-81,-75,-79,-80,-100,-16,-118,-118,-106,-75,-88,-22,-18,-6,-6,-23,-181,-38,-181,-198,-163,-134,-127,-85,-91,-95,-88,-105,-191,-177,-166,-125,-294,-218,-621,-609,-910,-910,-732,-697]} 1. d4 {[%emt 1:15:40]} Nf6 {[%emt 1:15:40]} 2. c4 {[%emt 0:00:22]} e6 {[%emt 0:00:21]} 3. Nf3 {[%emt 0:00:21]} d5 {[%emt 0:00:22]} 4. Nc3 {[%emt 0:00:21]} Bb4 {[%emt 0:00:23]} 5. Bg5 {[%emt 0:00:22]} h6 {[%emt 0:00:23]} 6. Bxf6 {[%emt 0:00:37]} Qxf6 {[%emt 0:00:21]} 7. Qa4+ {[%emt 0:00:21]} Nc6 {[%emt 0:00:22]} 8. e3 {[%emt 0:00:21]} O-O {[%emt 0:00:27]} 9. cxd5 {[%emt 0:00:31]} exd5 {[%emt 0:00:24]} 10. Rc1 {[%emt 0:00:20]} Qg6 {[%emt 0:02:40] 10...Rd8 is the hot move.} 11. Qb3 {[%emt 0:00:29] D38: Queen's Gambit Declined: Ragozin Defence (4 Nf3 Bb4).} Rd8 {[%emt 0:01:13]} 12. a3 {[%emt 0:00:21]} Ba5 {[%emt 0:01:36] [#]} 13. h4 $146 {[%emt 0:00:28] The position is equal.} ({Predecessor:} 13. h3 a6 14. Qa2 Bxc3+ 15. Rxc3 {½-½ (15) Dambrauskas,V (2220)-Brazdzionis,A (2317) Vilnius 2020}) 13... Ne7 {[%emt 0:01:05]} 14. h5 {[%emt 0:00:30]} Qf6 {[%emt 0:00:26]} 15. Qa4 {[%emt 0:00:50]} Bb6 {[%emt 0:00:34]} 16. Bd3 {[%emt 0:00:59]} c6 {[%emt 0:00:32]} 17. b4 {[%emt 0:00:21]} Bf5 {[%emt 0:00:35]} 18. Qc2 {[%emt 0:00:22]} Bxd3 {[%emt 0:00:48]} 19. Qxd3 {[%emt 0:00:21]} Nf5 {[%emt 0:00:20]} 20. b5 {[%emt 0:01:36]} Re8 {[%emt 0:02:42]} 21. bxc6 {[%emt 0:01:11]} bxc6 {[%emt 0:00:28]} 22. Kf1 {[%emt 0:00:33]} Re6 {[%emt 0:02:23]} 23. Rh3 {[%emt 0:00:30]} Rae8 {[%emt 0:01:26][%cal Rf5e3] White must now prevent ...Nxe3+!} 24. Ne5 {[%emt 0:03:11] [#]} (24. Kg1 $11) 24... Rxe5 {[%emt 0:02:21]} (24... Nxd4 $1 $17 {[%mdl 512]} 25. Nd7 (25. exd4 $2 Rxe5 26. Rf3 Qh4 $19) 25... Qd8 26. Nxb6 Nb3) 25. dxe5 $11 {[%emt 0:00:24]} Rxe5 {[%emt 0:00:21] aiming for ...Nxe3+.} 26. Kg1 {[%emt 0:01:32]} Qg5 {[%emt 0:01:13][%cal Rf5e3] And now ...Nxe3! would win.} 27. Nd1 {[%emt 0:03:00]} (27. Kh1 $11 Re8 28. Rb1) 27... Re6 $1 $15 {[%emt 0:01:36]} 28. Rb1 {[%emt 0:02:28]} Nh4 {[%emt 0:00:47][%csl Gh4][%cal Rg5g2] 0x0.00207e0ab36ddp-1022s more active pieces. The white rooks are badly placed.} 29. Rg3 {[%emt 0:00:41]} (29. Qf1 $1 $15 {was preferrable.}) 29... Qxh5 $17 {[%emt 0:00:29][%cal Od5d4]} 30. Rb4 {[%emt 0:00:43]} (30. Rh3 $17) 30... Nf5 {[%emt 0:00:54]} (30... c5 $19 31. Rb5 Nf5) 31. Rf3 {[%emt 0:00:23]} Ne7 {[%emt 0:00:34]} (31... Nd6 $17 32. Rh3 Qg5) 32. Rh3 {[%emt 0:01:13]} Qe5 {[%emt 0:00:51]} 33. Rb1 {[%emt 0:01:07]} Ng6 {[%emt 0:00:45]} 34. Nb2 {[%emt 0:00:35][%cal Bd1b2,Bb2a4,Ba4c3,Bc3e2][%mdl 32]} c5 {[%emt 0:00:37][%cal Bc6c5,Bc5c4][%mdl 32]} 35. Na4 {[%emt 0:00:38]} c4 {[%emt 0:00:22]} 36. Qd1 {[%emt 0:00:57]} Bc7 {[%emt 0:01:11]} ({Black should play} 36... Ne7 $17) 37. Rc1 {[%emt 0:01:33]} (37. f4 $1 $11 {keeps the balance.} Qd6 38. f5 Rxe3 39. Rxe3 Qh2+ 40. Kf2 Qh4+ 41. Kf1 Qh1+ 42. Kf2 Qh4+ 43. g3 Qh2+ 44. Kf1 Qh1+ 45. Kf2 Qh2+ 46. Kf1 Qh1+ 47. Kf2 Qh2+) 37... Ne7 $1 {[%emt 0:00:34]} 38. Nc3 {[%emt 0:00:25]} Rg6 {[%emt 0:00:38]} 39. Rh5 {[%emt 0:01:08]} Rg5 {[%emt 0:00:49]} ({Better is} 39... f5 $1 $17) 40. Rxg5 $11 {[%emt 0:01:24]} Qh2+ {[%emt 0:00:22]} 41. Kf1 {[%emt 0:30:21]} hxg5 {[%emt 0:30:20][%cal Bh6g5,Bg5g4][%mdl 32]} 42. Ne2 $2 {[%emt 0:00:22]} ({Much weaker is} 42. Nxd5 Nxd5 43. Rxc4 Nb6 $17) (42. Rb1 $11) 42... Qh1+ $19 {[%emt 0:00:27]} 43. Ng1 {[%emt 0:00:22]} Bh2 {[%emt 0:00:20]} 44. Ke2 {[%emt 0:00:21]} Qxg2 {[%emt 0:00:25]} 45. Nf3 {[%emt 0:00:22] [#]} g4 $1 {[%emt 0:00:57]} 46. Nxh2 {[%emt 0:01:35]} Qxh2 $17 {[%emt 0:00:20][%mdl 4096] Endgame KQR-KQN} 47. Qg1 {[%emt 0:00:22] [#] Prevents g3.} Qh5 {[%emt 0:00:32]} 48. Qh1 {[%emt 0:00:33]} (48. Qg3 $17) 48... Qf5 {[%emt 0:00:33][%cal Og4g3] Threatens to win with ...g3!} 49. Rd1 {[%emt 0:00:29]} g6 {[%emt 0:00:35] Strongly threatening ...c3.} 50. Rd4 $2 {[%emt 0:00:39]} (50. Qh2 $17) 50... Kg7 {[%emt 0:00:41]} ({Not} 50... Qc2+ $2 51. Rd2 Qf5 52. Rd4 $19) 51. Qg2 $2 {[%emt 0:00:51]} (51. a4) 51... c3 $19 {[%emt 0:00:22] Black is clearly winning.} ({Worse is} 51... Qc2+ 52. Rd2 Qf5 53. Qg3 $19) 52. Rd1 {[%emt 0:00:51]} Qc2+ {[%emt 0:00:30]} 53. Ke1 {[%emt 0:00:42]} Qb2 {[%emt 0:00:22] Weighted Error Value: White=0.51/Black=0.17 (very precise)} 0-1

[Event "FTX Road to Miami Prelims 2022"]
[Site "Online"]
[Date "2022.07.04"]
[Round "4.5"]
[White "Rapport, Richard"]
[Black "Erigaisi Arjun"]
[Result "1-0"]
[ECO "C54"]
[WhiteElo "2764"]
[BlackElo "2689"]
[Annotator "TA"]
[PlyCount "81"]
[EventDate "2022.07.10"]
[EventType "tourn"]
[EventCountry "NET"]
[SourceTitle "playchess.com"]
[Source "ChessBase"]
[SourceQuality "1"]
[TimeControl "40/5400+30:1800+30"]

{[%evp 11,81,21,20,6,22,12,26,-14,0,-12,0,0,13,13,23,19,82,72,76,74,78,69,77,84,81,78,82,83,79,71,71,80,78,75,118,116,126,96,139,139,161,149,147,151,195,200,187,172,243,187,164,95,147,151,307,227,287,213,235,205,326,308,624,592,565,480,5081,5081,5081,5081,29976,29972]} 1. e4 {[%emt 1:15:40]} e5 {[%emt 1:15:40]} 2. Nf3 {[%emt 0:00:23]} Nc6 {[%emt 0:00:22]} 3. Bc4 {[%emt 0:00:29]} Nf6 {[%emt 0:00:22]} 4. d3 {[%emt 0:00:22]} Bc5 {[%emt 0:00:22]} 5. c3 {[%emt 0:00:26]} d6 {[%emt 0:00:22]} 6. Bb3 {[%emt 0:00:23]} h6 {[%emt 0:00:30]} 7. h3 {[%emt 0:00:28] C54: Giuoco Piano: 4 c3 Nf6, main lines with 5 d4 and 5 d3.} a6 {[%emt 0:00:27]} 8. Nbd2 {[%emt 0:00:25][%cal Bb1d2,Bd2f1,Bf1g3][%mdl 32]} Be6 {[%emt 0:00:22]} 9. Bc2 {[%emt 0:00:37] White has an edge. is the legacy move (9.Nf1).} d5 {[%emt 0:00:56]} 10. Qe2 {[%emt 0:01:08]} Qe7 {[%emt 0:00:58]} 11. Nf1 {[%emt 0:01:52] [#]} Rd8 $146 {[%emt 0:00:41]} ({Predecessor:} 11... dxe4 12. dxe4 Rd8 13. Ne3 O-O 14. g4 Nh7 15. Nf5 Bxf5 16. gxf5 Rfe8 17. Rg1 Kh8 {1-0 (52) Roth,P (2327)-Woeber,F (2189) Austria 2002}) 12. Ng3 {[%emt 0:00:41]} O-O {[%emt 0:01:10]} 13. O-O {[%emt 0:01:00]} b5 {[%emt 0:01:38]} (13... d4 $11 {keeps the balance.}) 14. d4 $16 {[%emt 0:01:19]} exd4 {[%emt 0:03:25]} 15. e5 {[%emt 0:00:24]} Ne4 {[%emt 0:00:22]} 16. Nxe4 {[%emt 0:00:26]} dxe4 {[%emt 0:00:20]} (16... d3 $2 17. Qxd3 Bf5 {[#]} 18. Nf6+ $1 {[%mdl 512]} Qxf6 19. exf6 $18) 17. Qxe4 {[%emt 0:00:23][%csl Gc2][%cal Re4h7] [#]} d3 {[%emt 0:00:23]} 18. Bxd3 {[%emt 0:00:35]} Rxd3 {[%emt 0:00:20]} 19. Qxd3 {[%emt 0:00:24]} Bc4 {[%emt 0:00:21] This bishop pair is nice.} 20. Qe4 {[%emt 0:01:40]} Bxf1 {[%emt 0:00:22]} 21. Kxf1 {[%emt 0:00:24][%cal Bg1f1,Bf1e2,Be2d1,Bd1c2,Bc2d3][%mdl 32]} Qe6 {[%emt 0:00:25]} 22. Qg4 {[%emt 0:01:20]} g5 {[%emt 0:02:39]} 23. Qxe6 {[%emt 0:01:55]} fxe6 {[%emt 0:00:20]} 24. Ke2 {[%emt 0:00:21]} Rd8 {[%emt 0:02:58]} 25. Be3 {[%emt 0:00:38]} Rd5 {[%emt 0:00:35]} 26. Rd1 {[%emt 0:01:28] And now Rxd5 would win.} Rxd1 {[%emt 0:00:22]} 27. Kxd1 {[%emt 0:00:21]} Bxe3 {[%emt 0:00:21]} 28. fxe3 {[%emt 0:00:21][%mdl 4096] Endgame KN-KN} Kf7 {[%emt 0:00:21]} 29. Kc2 {[%emt 0:00:39]} Ne7 {[%emt 0:01:21]} (29... Nb8 $142 30. c4 bxc4) 30. Kd3 {[%emt 0:01:13]} c5 {[%emt 0:00:47]} 31. b4 {[%emt 0:01:52]} (31. Nd2 $18) 31... cxb4 {[%emt 0:02:53]} (31... c4+ $142 32. Ke4 Ke8) 32. cxb4 {[%emt 0:00:20]} Ke8 $2 {[%emt 0:02:35] This move loses the game for Black.} (32... Nc6 $16 {was worth a try.}) 33. Nd4 $18 {[%emt 0:01:38]} Kd7 {[%emt 0:00:22]} 34. Nb3 {[%emt 0:00:22] Threatens to win with Nc5+.} Kc6 {[%emt 0:00:29]} 35. Nc5 {[%emt 0:01:17]} Nd5 {[%emt 0:00:54]} (35... Kd5 {was necessary.} 36. Nxa6 Kxe5) 36. a3 {[%emt 0:00:31]} ({Weaker is} 36. Nxa6 Kb6 37. Nb8 (37. Nc5 $2 Nxb4+ 38. Kd4 Nc6+ 39. Kd3 Kxc5 $19) 37... Kc7 38. Na6+ Kb6 $11) (36. Nxe6 Nxb4+ 37. Ke4 Nxa2 $14) 36... a5 $2 {[%emt 0:00:22]} (36... Nc7 37. Kd4 Kb6 38. Nd7+ Kc6) 37. Nxe6 {[%emt 0:00:22]} axb4 {[%emt 0:00:21]} 38. e4 {[%emt 0:00:21][%cal Be3e4,Be4d5,Bd5d6][%mdl 32]} bxa3 {[%emt 0:01:14]} (38... Nc3 $142 39. Nd4+ Kd7) 39. Nd4+ {[%emt 0:00:32]} Kc5 {[%emt 0:00:21]} 40. exd5 {[%emt 0:00:23]} a2 {[%emt 0:00:44]} 41. d6 {[%emt 0:30:51] Weighted Error Value: White=0.13 (very precise) /Black=0.59} 1-0